Cogmind - Beta 16.1 @@@ ROGUE MODE // 2026.04.21 @ 04:46:24 Player: KURIIRI Result: Self-destructed Performance ------------- Evolutions (6) 3000 Regions Visited (14) 2800 Robots Destroyed (220) 1100 Value Destroyed (7450) 7450 Prototype IDs (35) 700 Alien Tech Used (0) 0 Bonus (5061) 5061 TOTAL SCORE: 20111 Bonus ------- High Alert Combat Kills 842 Follower Combat Kills 329 Entered Garrisons 600 Used RIF Installer 2500 Registered with UFD 300 Met Optimus in HQ 500 Friendly Fire -10 Cogmind --------- Core Integrity 1150/1150 Matter 134/300 Energy 160/160 System Corruption 0% Temperature Cool (0) Movement Hovering (65) Location -4/Factory Parts ------- > --- POWER (1) -------- Light Nuclear Core > --- PROPULSION (6) --- Improved Gravmag System Combat Airjet Combat Antigrav System Combat Antigrav System > --- UTILITY (7) ------ Advanced Cooling System Large Storage Unit Improved Signal Interpreter Thermal Defense Suite System Shield > --- WEAPON (5) ------- Heavy Plasma Cannon Compact Ion Cannon Improved Remote Datajack > --- INVENTORY (15) --- Linear Gravjet Gravity Neutralizer Experimental Sensor Array Gun Armor Relay Coupler [NC] (29) Relay Coupler [NC] (27) Relay Coupler [Sentry] (21) Relay Coupler [Sentry] (24) Neutron Missile Launcher Multitool Peak State ------------ > --- POWER ------------ Fission Core Hybrid Fission Core > --- PROPULSION ------- Combat Airjet Gravmag Array Antigrav System Antigrav System Antigrav System > --- UTILITY ---------- Advanced Heat Sink Large Storage Unit Improved Signal Interpreter Improved Phase Shifter Improved Weapon Shielding Improved Medium Armor Plating System Shield > --- WEAPON ----------- Compact Ion Cannon Powered Cannon > --- INVENTORY -------- Light Fission Core Improved Gravmag System Antigrav System Linear Gravjet Gravity Neutralizer Experimental Sensor Array Gun Armor Thermal Defense Suite Relay Coupler [NC] Relay Coupler [Grunt] Relay Coupler [Sentry] Heavy Plasma Cannon Neutron Missile Launcher Improved Remote Datajack Multitool [Rating: 97] Favorites ----------- Power Improved Ion Engine Engine Improved Ion Engine Power Core Fission Core Reactor Antimatter Reactor Propulsion Combat Airjet Treads Light Treads Leg Carbon-fiber Leg Wheel Compact Wheel Hover Unit Combat Airjet Flight Unit Biomechanical Wings Utility Large Storage Unit Device Experimental Sensor Array Storage Large Storage Unit Processor Improved Signal Interpreter Hackware Hacking Suite Protection Improved Medium Armor Plating Weapon Subdweller Beam Cannon Energy Gun Medium Laser Energy Cannon Subdweller Beam Cannon Ballistic Gun Assault Rifle Ballistic Cannon Magnetic Acceleration Cannon Launcher Mini Grenade Launcher Special Weapon Remote Datajack Build | -11 -10 -10 -10 -8 -8 -6 -6 -6 -6 -6 -6 -5 -5 -4 ------- Run | Yrd Mat Min Sub Rec Scr Fac Was Fac Gar Fac Gar Fac Gar Fac Slots Evolved 12 | . . . . . . 8 . . . . . 2 . 2 Power . | . . . . . . . . . . . . . . . Propulsion 4 | . . . . . . 4 . . . . . . . . Utility 5 | . . . . . . 4 . . . . . 1 . . Weapon 3 | . . . . . . . . . . . . 1 . 2 Parts Attached 149 | 3 7 2 10 3 . 40 . 13 28 16 3 11 13 . Power 17 | . 1 . 2 1 . 3 . 1 3 3 1 . 2 . Engine 8 | . 1 . 2 1 . . . 1 2 . 1 . . . Core 8 | . . . . . . 3 . . 1 3 . . 1 . Reactor 1 | . . . . . . . . . . . . . 1 . Propulsion 51 | 2 . . 3 . . 22 . 4 9 . 1 7 3 . Treads 3 | 2 . . 1 . . . . . . . . . . . Leg 3 | . . . . . . . . . 3 . . . . . Wheel 7 | . . . 2 . . 4 . . 1 . . . . . Hover 27 | . . . . . . 7 . 4 5 . 1 7 3 . Flight 11 | . . . . . . 11 . . . . . . . . Utility 52 | 1 2 1 1 1 . 11 . 6 9 11 1 3 5 . Device 17 | 1 1 . 1 . . 3 . 1 3 3 . 1 3 . Storage 2 | . 1 . . . . 1 . . . . . . . . Processor 8 | . . . . . . 1 . 2 2 2 . 1 . . Hackware 10 | . . . . 1 . 1 . . 4 1 . 1 2 . Protection 15 | . . 1 . . . 5 . 3 . 5 1 . . . Artifact . | . . . . . . . . . . . . . . . Weapon 29 | . 4 1 4 1 . 4 . 2 7 2 . 1 3 . Energy Gun 6 | . . . . . . . . 1 3 . . . 2 . Energy Cannon 10 | . . 1 4 . . 1 . . 1 1 . 1 1 . Ballistic Gun 4 | . 1 . . . . 2 . . 1 . . . . . Ballistic Cannon 2 | . . . . . . 1 . . 1 . . . . . Launcher 4 | . 3 . . . . . . 1 . . . . . . Special Weapon 3 | . . . . 1 . . . . 1 1 . . . . Impact Weapon . | . . . . . . . . . . . . . . . Slashing Weapon . | . . . . . . . . . . . . . . . Piercing Weapon . | . . . . . . . . . . . . . . . Special Melee Weapon . | . . . . . . . . . . . . . . . Unidentified Prototypes 6 | . . . . . . 4 . 1 . . . 1 . . Parts Lost 39 | . 1 . 5 . . 10 . 1 4 2 2 1 13 . Power 9 | . . . 2 . . 3 . . 1 . . . 3 . Propulsion 14 | . . . 2 . . 6 . 1 . . 1 1 3 . Utility 10 | . 1 . . . . . . . 3 1 1 . 4 . Weapon 6 | . . . 1 . . 1 . . . 1 . . 3 . Highest Loss Streak 6 | . 1 . 4 . . 4 . 1 1 1 2 1 6 . To Critical Strikes . | . . . . . . . . . . . . . . . Average Backups 13 | 6 13 14 14 13 11 10 6 10 13 13 13 14 12 . Power 1 | 1 1 1 . . . . . . 1 1 1 1 . . Propulsion 2 | 4 2 2 2 1 . . 1 1 2 2 3 3 1 . Utility 5 | . 5 6 6 7 6 5 3 5 3 4 4 6 7 . Weapon 3 | 1 4 4 3 3 3 2 1 2 4 3 2 2 1 . Tool/Special . | . . . . . . . . . . . . . . . Unused Backups 45 | . 12 5 5 1 4 1 . 3 1 4 . 2 . 7 Power 4 | . 2 1 . . . . . 1 . . . . . . Propulsion 9 | . 2 . 1 1 1 . . 1 1 1 . . . 1 Utility 24 | . 5 1 3 . 3 1 . 1 . 3 . 1 . 6 Weapon 7 | . 3 3 1 . . . . . . . . . . . Tool/Special 1 | . . . . . . . . . . . . 1 . . Average Slot Usage (%) 93 | . 99 100 99 100 84 80 86 88 88 91 88 89 83 . Engine 7 | . 14 14 13 14 12 1 . . 2 . . . . . Core 2 | . . . . . . 3 6 6 2 6 12 11 6 . Treads 10 | . 28 28 25 . . . . . . . . . . . Wheel 4 | . . . 2 28 26 5 . . 3 . . . . . Hover 12 | . . . . . . 5 20 27 27 38 36 30 25 . Flight 1 | . . . . . . 16 13 2 . . . . . . Device 8 | . 13 2 13 . . 5 6 5 9 6 6 5 10 . Storage 10 | . 14 14 14 14 13 6 6 6 6 6 6 5 5 . Processor 2 | . . . . . . 5 6 6 2 5 . 4 5 . Hackware 6 | . . . . 13 14 12 13 13 10 7 6 10 10 . Protection 4 | . . 11 . . . 6 6 6 3 8 13 11 4 . Energy Gun 4 | . 14 13 . . . . . 4 6 2 . . 1 . Energy Cannon 10 | . . . 27 28 16 5 6 5 4 5 6 8 7 . Ballistic Gun 1 | . 7 . . . . 1 . . . . . . . . Launcher 1 | . 6 14 . . . . . . . . . . . . Peak Build Rating 97 | 9 13 13 17 19 19 72 67 80 77 89 89 96 97 . Average Rating 40 | 6 12 11 15 18 16 49 66 69 66 79 84 92 81 . On Entrance 47 | 6 9 13 13 17 19 15 66 67 77 72 89 81 96 70 Avg Prop Armor Cover (%) 3 | . . . . . . 5 . . 12 1 . 3 . . Naked Turns . | . . . . . . . . . . . . . . . Heaviest Build 68 | 12 32 37 45 41 41 55 31 51 59 62 65 61 68 . Greatest Support 78 | 40 40 40 40 32 32 38 38 66 69 69 75 75 78 . Greatest Overweight (x) 11 | . . . 1 1 6 11 . 1 3 1 . 1 1 . Average Overweight (x) . | . . . . 1 . . . . . . . . . . Largest Inventory Capacity 15 | 8 15 15 15 15 15 15 10 15 15 15 15 15 15 . Average Capacity 14 | 8 14 15 15 15 14 11 10 13 15 15 15 15 15 . Most Carried 15 | 6 15 15 15 15 15 15 8 15 15 15 15 15 15 . Average Carried 13 | 5 14 14 14 14 12 11 7 11 14 14 14 14 12 . Final Capacity 15 | 8 15 15 15 15 15 10 10 15 15 15 15 15 15 15 Final Carried 15 | 4 15 15 14 14 15 7 8 15 14 14 15 15 10 10 Class Distribution -------------------- 62% | Mutant 15% | Hacker-Mutant 11% | Scavenger-Mutant Dominant Class ---------------- Mutant | -10/Materials Mutant | -10/Mines Mutant | -10/Subcaves Mutant | -8/Recycling Mutant | -8/Scraptown Hacker-Mutant | -6/Factory Hacker-Mutant | -6/Waste Hacker-Mutant | -6/Factory Scavenger-Mutant | -6/Garrison Mutant | -6/Factory Scavenger-Mutant | -6/Garrison Hacker-Skirmisher | -5/Factory Bothacker-Mutant | -5/Garrison Bothacker-Mutant | -4/Factory Resources | -11 -10 -10 -10 -8 -8 -6 -6 -6 -6 -6 -6 -5 -5 -4 ----------- Run | Yrd Mat Min Sub Rec Scr Fac Was Fac Gar Fac Gar Fac Gar Fac Matter Collected 5001 | 225 1400 48 494 50 40 500 . 581 748 407 66 210 232 . Remotely . | . . . . . . . . . . . . . . . Salvage Created 8723 | 122 2581 23 680 169 . 567 . 637 1477 684 948 452 383 . Parts 480 | 11 153 2 43 15 . 33 . 25 69 39 43 30 17 . Haulers Intercepted 2 | . 2 . . . . . . . . . . . . . Recyclers Shooed 12 | . 11 . . . . . . 1 . . . . . . Parts Field Recycled . | . . . . . . . . . . . . . . . Retrieved Matter . | . . . . . . . . . . . . . . . Parts Self-Destructed 7 | . . . 7 . . . . . . . . . . . Prevented . | . . . . . . . . . . . . . . . Parts Restored . | . . . . . . . . . . . . . . . Kills | -11 -10 -10 -10 -8 -8 -6 -6 -6 -6 -6 -6 -5 -5 -4 ------- Run | Yrd Mat Min Sub Rec Scr Fac Was Fac Gar Fac Gar Fac Gar Fac Combat Hostiles Destroyed 125 | . 16 . 16 3 . 11 . 9 29 10 15 4 12 . Guns 20 | . 2 . . . . 2 . 4 12 . . . . . Cannons 75 | . . . 14 3 . 8 . 4 16 8 12 4 6 . AOE 20 | . 14 . 1 . . . . . . . . . 5 . Classes Destroyed 19 | 2 7 . 3 1 . 2 . . 1 . 1 . 2 . Worker 42 | . 33 1 . . . 3 . 2 . 1 . 2 . . Builder 21 | . 15 . . . . 2 . 2 . 2 . . . . Tunneler 7 | 3 4 . . . . . . . . . . . . . Hauler 2 | . 2 . . . . . . . . . . . . . Recycler 20 | 1 16 . . . . . . 2 . . . 1 . . Operator 5 | . 1 . . . . . . . . 2 . 2 . . Turret 2 | . . . 2 . . . . . . . . . . . Watcher 8 | . 3 . . . . . . 1 . 3 1 . . . Swarmer 31 | . 9 . 4 . . 4 . 4 6 . . . 4 . Cutter 3 | . . . . . . . . . . . . . 3 . Grunt 27 | . 7 . . . . 2 . . 6 2 7 . 3 . Duelist 4 | . . . . . . . . . 4 . . . . . Sentry 20 | . . . . 3 . 1 . 1 8 4 3 . . . Specialist 4 | . . . . . . . . . . . 3 . 1 . Hunter 2 | . . . . . . 1 . . 1 . . . . . Programmer 22 | . . . . . . 3 . 4 5 4 2 4 . . Striker 1 | . . . . . . . . . . . . . 1 . Artisan 1 | . . . 1 . . . . . . . . . . . Subdweller 12 | . . . 12 . . . . . . . . . . . Best Kill Streak 15 | 2 15 1 6 2 . 5 . 4 6 3 4 3 4 . Combat Bots Only 6 | . 3 . 4 2 . 5 . 3 6 3 4 2 4 . Max Kills in Single Turn 5 | 1 5 1 1 1 . 2 . 1 2 1 1 1 4 . Gunslinging . | . . . . . . . . . . . . . . . Exploded 4 | . 3 . 1 . . . . . . . . . 4 . Melee . | . . . . . . . . . . . . . . . Uniques/NPCs Destroyed . | . . . . . . . . . . . . . . . Combat | -11 -10 -10 -10 -8 -8 -6 -6 -6 -6 -6 -6 -5 -5 -4 -------- Run | Yrd Mat Min Sub Rec Scr Fac Was Fac Gar Fac Gar Fac Gar Fac Hostile Shots Fired 871 | . 27 4 77 2 . 102 . 91 216 93 94 20 145 . Missed 349 | . 6 1 22 1 . 37 . 34 106 39 31 6 66 . Hits 522 | . 21 3 55 1 . 65 . 57 110 54 63 14 79 . Melee 16 | . . . . . . . . . . . . . 16 . Projectile 506 | . 21 3 55 1 . 65 . 57 110 54 63 14 63 . AOE 7 | . . . 1 . . . . 1 1 . . . 4 . Critical Strikes 10 | . . . . 1 . 1 . 2 . 2 1 . 3 . Damage Taken 8176 | . 265 46 894 14 . 1008 . 953 1235 572 981 290 1918 . Core 1232 | . 28 14 139 . . 84 . 138 130 63 77 59 500 . Absorbed by Shields 290 | . . . . . . . . . . . 65 . 225 . Redirected to Shielding 103 | . . . . . . . . . . 23 47 15 18 . Regen/Repaired (Parts) 367 | . . . . . . . . 218 . 149 . . . . Core Remaining (%) 53 | 100 . . . . 27 . . . . . 42 . 44 . Volleys Fired 755 | 15 213 2 62 5 . 74 . 84 82 65 78 24 51 . Largest 3 | 2 2 1 2 2 . 2 . 2 2 2 1 2 3 . Hottest 250 | 70 70 30 160 155 . 150 . 170 165 165 40 210 250 . Shots Fired 1116 | 30 355 2 105 10 . 85 . 123 139 82 78 29 78 . Gun 500 | 30 328 . . . . 20 . 40 49 17 . . 16 . Cannon 568 | . . . 103 10 . 65 . 83 86 61 78 29 53 . Launcher 36 | . 27 2 2 . . . . . 2 . . . 3 . Special 12 | . . . . . . . . . 2 4 . . 6 . Kinetic 212 | 15 146 . . . . 23 . . 28 . . . . . Thermal 856 | 15 182 . 103 10 . 62 . 123 107 78 78 29 69 . Explosive 36 | . 27 2 2 . . . . . 2 . . . 3 . Electromagnetic . | . . . . . . . . . . . . . . . Robot Hit Streak 24 | 4 11 . 15 5 . 8 . 15 24 12 9 14 15 . Robot Miss Streak 7 | 4 4 . 3 1 . 3 . 7 4 3 4 2 4 . Penetration Max 1 | . . . . . . 1 . . . . . . . . Secondary Targets 1 | . . . . . . . . . 1 . . . . . Max Gunslinging Chain 1 | . . . . . . . . . 1 . . . . . Shots Hit Robots 637 | 14 187 . 56 7 . 37 . 61 105 54 43 21 52 . Core Hits 334 | 6 112 1 18 3 . 18 . 35 68 28 16 9 20 . Critical Kills 13 | . . . 3 . . 2 . 1 1 2 3 . 1 . Critical Parts Destroyed 1 | . 1 . . . . . . . . . . . . . Critical Strikes 24 | . 10 . 3 . . 2 . 1 2 2 3 . 1 . Burn 9 | . 9 . . . . . . . . . . . . . Meltdown 11 | . . . 3 . . . . 1 1 2 3 . 1 . Destroy 3 | . 1 . . . . 2 . . . . . . . . Blast 1 | . . . . . . . . . 1 . . . . . Melee Attacks . | . . . . . . . . . . . . . . . Impact . | . . . . . . . . . . . . . . . Slashing . | . . . . . . . . . . . . . . . Piercing . | . . . . . . . . . . . . . . . Sneak Attacks . | . . . . . . . . . . . . . . . Combat Hostiles . | . . . . . . . . . . . . . . . Follow-up Attacks . | . . . . . . . . . . . . . . . Damage Inflicted 19245 | 142 3645 90 1630 176 . 1141 . 1847 3142 1778 2222 1182 2250 . Guns 5327 | 142 2418 . . . . 14 . 930 1094 393 . . 336 . Cannons 11550 | . . . 1513 176 . 1127 . 917 1892 1385 2222 1182 1136 . Explosions 2326 | . 1226 49 117 . . . . . 156 . . . 778 . Melee . | . . . . . . . . . . . . . . . Ramming 42 | . 1 41 . . . . . . . . . . . . Kinetic 1721 | 64 982 . . . . 97 . . 578 . . . . . Thermal 15156 | 78 1436 . 1513 176 . 1044 . 1847 2408 1778 2222 1182 1472 . Explosive 2326 | . 1226 49 117 . . . . . 156 . . . 778 . Electromagnetic . | . . . . . . . . . . . . . . . Impact . | . . . . . . . . . . . . . . . Slashing . | . . . . . . . . . . . . . . . Piercing . | . . . . . . . . . . . . . . . Highest Corruption 9 | . . . . . . 1 8 9 5 6 1 3 3 . Average Corruption 4 | . . . . . . 1 6 7 4 4 1 1 3 . Corruption Purged 11 | . . . . . . . . 5 . 6 . . . . Corruption Blocked . | . . . . . . . . . . . . . . . Effects 139 | . . . . . . 5 1 61 24 30 5 6 7 . Message Errors 33 | . . . . . . 2 . 13 7 8 . 1 2 . Matter Fused 39 | . . . . . . . . 17 9 8 1 2 2 . Heat Flow Errors 17 | . . . . . . 1 . 7 4 2 2 . 1 . Energy Discharges 10 | . . . . . . . . 4 1 3 1 . 1 . Parts Rejected 1 | . . . . . . . . 1 . . . . . . Data Loss (minor) 15 | . . . . . . . . 9 . 3 1 1 1 . Data Loss (major) 7 | . . . . . . 1 . 3 . 3 . . . . Misfires 6 | . . . . . . 1 . 3 1 1 . . . . Alerts 3 | . . . . . . . 1 . 1 1 . . . . Weapon Failures 8 | . . . . . . . . 4 1 1 . 2 . . Overload Shots 22 | . . . . . . 4 . 14 2 . . 1 1 . Effects 1 | . . . . . . . . 1 . . . . . . Energy Bleed 1 | . . . . . . . . 1 . . . . . . Overflow Damage 687 | . 73 . 15 . . 64 . 114 4 108 43 225 41 . Projectiles 598 | . . . 13 . . 64 . 114 4 108 43 225 27 . Explosions 89 | . 73 . 2 . . . . . . . . . 14 . Melee . | . . . . . . . . . . . . . . . Knockbacks 4 | . . . . . . 1 . . 3 . . . . . Impact . | . . . . . . . . . . . . . . . Kinetic 4 | . . . . . . 1 . . 3 . . . . . Secondary . | . . . . . . . . . . . . . . . Self-Inflicted Damage 105 | . 32 . . . . . . . . . . . 73 . Shots 2 | . 1 . . . . . . . . . . . 1 . Rammed 3 | . . 3 . . . . . . . . . . . . Targets Rammed 4 | . 1 3 . . . . . . . . . . . . Kicked . | . . . . . . . . . . . . . . . Crushed 1 | . 1 . . . . . . . . . . . . . Highest Temperature 515 | 100 135 . 6 196 . 396 . 275 515 381 253 244 477 . Average Temperature 79 | 36 70 . 3 87 . 90 . 64 106 97 42 35 128 . Received Heat Transfer 1390 | . 93 18 180 27 . 159 . 117 333 162 184 . 117 . Effects 18 | . . . . . . 2 . 6 2 6 . . 2 . Shutdowns 2 | . . . . . . 1 . . . 1 . . . . Energy Bleed 3 | . . . . . . . . . 1 1 . . 1 . Interference 10 | . . . . . . . . 6 . 4 . . . . Matter Decay 1 | . . . . . . . . . . . . . 1 . Short Circuit 2 | . . . . . . 1 . . 1 . . . . . Siege Activations . | . . . . . . . . . . . . . . . Martial Activations . | . . . . . . . . . . . . . . . Shielding Activations . | . . . . . . . . . . . . . . . Robots Disrupted . | . . . . . . . . . . . . . . . Combat Hostiles . | . . . . . . . . . . . . . . . Robots Corrupted . | . . . . . . . . . . . . . . . Combat Hostiles . | . . . . . . . . . . . . . . . Parts Fried . | . . . . . . . . . . . . . . . Impact Corruptions . | . . . . . . . . . . . . . . . Robots Melted 12 | . . . 3 . . 1 . 1 1 2 3 . 1 . Combat Hostiles 11 | . . . 2 . . 1 . 1 1 2 3 . 1 . Parts Melted 49 | . 2 . 7 . . 3 . 11 13 8 4 . 1 . Heat Transferred 19679 | 222 4921 . 2072 259 . 1347 . 3038 4040 1763 . 222 1795 . Parts Sabotaged . | . . . . . . . . . . . . . . . Parts Stolen . | . . . . . . . . . . . . . . . Parts Stripped . | . . . . . . . . . . . . . . . Power Chain Reactions . | . . . . . . . . . . . . . . . Alert | -11 -10 -10 -10 -8 -8 -6 -6 -6 -6 -6 -6 -5 -5 -4 ------- Run | Yrd Mat Min Sub Rec Scr Fac Was Fac Gar Fac Gar Fac Gar Fac Maximum Alert Level 4 | . 1 1 . . . . . 1 4 3 2 1 2 . Low Security (%) 75 | 100 83 98 . 100 . 100 100 85 3 87 21 80 21 . Level 1 10 | . 16 1 . . . . . 14 8 . 32 19 20 . Level 2 5 | . . . . . . . . . 15 5 45 . 58 . Level 3 3 | . . . . . . . . . 25 6 . . . . Level 4 4 | . . . . . . . . . 46 . . . . . Level 5 . | . . . . . . . . . . . . . . . High Security . | . . . . . . . . . . . . . . . Max Security . | . . . . . . . . . . . . . . . Peak Influence 1405 | 10 354 200 . 86 . 112 13 224 1405 758 605 340 475 . Initial 737 | . . 136 . 69 . . 13 . 141 737 85 317 17 186 Average 203 | 3 171 52 . 26 . 31 5 81 927 128 366 103 336 . Influence Increases 5895 | 20 1040 103 165 244 . 454 . 579 1424 608 540 210 508 . Destroy 0b10 Robot/C 2490 | . 320 20 120 60 . 220 . 180 760 200 300 80 230 . Destroy 0b10 Robot/NC 530 | 20 370 5 . . . 25 . 35 5 40 5 25 . . Destroy Leader 378 | . 60 . . . . 60 . 62 40 96 20 20 20 . Allied During Kill 181 | . . 1 . . . . . . 178 . . . 2 . Successful Hack 230 | . 20 . . 18 . 35 . 51 . 41 12 41 12 . Select Force Hacks 210 | . 30 . . 150 . . . 30 . . . . . . Disable Machine 330 | . 60 60 . 15 . 45 . . 30 45 30 15 30 . Anti-Garrison Action 400 | . . . . . . . . . 250 . 50 . 100 . Destroy Structure 486 | . 180 17 . 1 . 9 . 26 56 21 63 14 99 . Partial Spotted 60 | . . . . . . 45 . . . . . 15 . . Lose Combat Pursuer 600 | . . . 45 . . 15 . 195 105 165 60 . 15 . Influence Decreases 5709 | 20 689 454 19 382 8 415 39 377 221 1891 57 790 178 169 Entered New Map 1557 | . . 215 . 77 8 . 26 . 61 668 37 288 8 169 Time Decay 2924 | 20 679 239 9 305 . 334 13 375 . 598 . 352 . . Lost Part 313 | . 10 . 10 . . 81 . 2 40 20 20 . 130 . Lost Ally 190 | . . . . . . . . . 120 30 . . 40 . Purge Threat 725 | . . . . . . . . . . 575 . 150 . . Squads Dispatched 54 | . 1 1 . . . 13 . 17 . 17 . 5 . . Investigation 32 | . 1 1 . . . 7 . 9 . 11 . 3 . . Extermination 15 | . . . . . . 3 . 5 . 5 . 2 . . Reinforcement 4 | . . . . . . . . 3 . 1 . . . . Assault . | . . . . . . . . . . . . . . . Garrison 3 | . . . . . . 3 . . . . . . . . Intercept . | . . . . . . . . . . . . . . . Searches Triggered . | . . . . . . . . . . . . . . . Construction Impeded 1 | . . . . . . . . 1 . . . . . . Haulers Reinforced . | . . . . . . . . . . . . . . . Active Scanning Responses . | . . . . . . . . . . . . . . . Cargo Convoy Interrupts 1 | . . . . . . . . . . . . 1 . . Stealth | -11 -10 -10 -10 -8 -8 -6 -6 -6 -6 -6 -6 -5 -5 -4 --------- Run | Yrd Mat Min Sub Rec Scr Fac Was Fac Gar Fac Gar Fac Gar Fac Distress Signals 9 | . 2 . . . . . . 2 . 2 1 . 2 . Communications Jammed . | . . . . . . . . . . . . . . . Distress Signals . | . . . . . . . . . . . . . . . Times Spotted 223 | . 19 2 16 2 . 17 6 32 41 31 21 8 28 . Peak Tracking Total 9 | . 4 2 4 1 . 5 6 5 9 5 7 2 7 . Tactical Retreats 26 | . . . 2 . . 1 . 7 4 7 4 . 1 . Traps | -11 -10 -10 -10 -8 -8 -6 -6 -6 -6 -6 -6 -5 -5 -4 ------- Run | Yrd Mat Min Sub Rec Scr Fac Was Fac Gar Fac Gar Fac Gar Fac Traps Triggered 17 | . . . . . . 2 . 3 2 1 5 2 2 . Indirectly . | . . . . . . . . . . . . . . . Trap Hack Attempts . | . . . . . . . . . . . . . . . Triggered . | . . . . . . . . . . . . . . . Disarmed . | . . . . . . . . . . . . . . . Reprogrammed . | . . . . . . . . . . . . . . . Reused . | . . . . . . . . . . . . . . . Traps Extracted . | . . . . . . . . . . . . . . . Installed . | . . . . . . . . . . . . . . . Triggered . | . . . . . . . . . . . . . . . Machines | -11 -10 -10 -10 -8 -8 -6 -6 -6 -6 -6 -6 -5 -5 -4 ---------- Run | Yrd Mat Min Sub Rec Scr Fac Was Fac Gar Fac Gar Fac Gar Fac Machines Disabled 34 | . 5 6 3 1 . 3 . . 5 3 3 1 4 . Max in Single Turn 4 | . 1 4 1 1 . 1 . . 2 1 1 1 1 . Garrison Access 5 | . . . . . . 1 . 2 . 1 . 1 . . Garrison Relay 4 | . . . . . . . . . 1 . 1 . 2 . Phase Generator 1 | . . . . . . . . . 1 . . . . . Machines Repaired 2 | . . . . 1 . . . . . 1 . . . . Machines Dismantled . | . . . . . . . . . . . . . . . Machines Sabotaged . | . . . . . . . . . . . . . . . Overloaded Fab Kills . | . . . . . . . . . . . . . . . Hacking | -11 -10 -10 -10 -8 -8 -6 -6 -6 -6 -6 -6 -5 -5 -4 --------- Run | Yrd Mat Min Sub Rec Scr Fac Was Fac Gar Fac Gar Fac Gar Fac Machines Accessed 110 | . 8 1 2 11 5 15 . 27 3 21 1 15 1 . Terminals 50 | . 7 . . 6 . 6 . 11 3 7 1 8 1 . Fabricators 6 | . . . . . . 1 . 1 . 2 . 2 . . Repair Stations 3 | . . . . . . . . 2 . 1 . . . . Recycling Units 26 | . 1 . . 5 . 6 . 6 . 7 . 1 . . Scanalyzers 9 | . . . . . . 1 . 4 . 2 . 2 . . Garrison Access 8 | . . . . . . 1 . 3 . 2 . 2 . . Total Hacks 273 | . 21 1 12 32 39 32 . 62 4 40 3 25 2 . Successful 187 | . 10 1 12 20 39 18 . 43 1 28 1 13 1 . Failed 81 | . 10 . . 11 . 13 . 18 3 12 2 11 1 . Catastrophic 8 | . . . . . . 1 . 2 . 3 . 2 . . Database Lockouts 5 | . 1 . . 1 . 1 . 1 . . . 1 . . Manual 111 | . 13 . . 21 . 19 . 26 3 17 . 10 2 . Terminals 107 | . 15 . . 20 . 14 . 23 4 13 3 13 2 . Fabricators 16 | . . . . . . 2 . 3 . 6 . 5 . . Repair Stations 10 | . . . . . . . . 6 . 4 . . . . Recycling Units 54 | . 6 . . 12 . 13 . 10 . 11 . 2 . . Scanalyzers 25 | . . . . . . 2 . 16 . 4 . 3 . . Garrison Access 9 | . . . . . . 1 . 4 . 2 . 2 . . Terminal Hacks 75 | . 2 1 12 6 39 . . 5 1 4 1 3 1 . Record 50 | . . . 11 . 39 . . . . . . . . . Part Schematic 2 | . . . . . . . . . . 1 . 1 . . Robot Analysis 4 | . 1 . . 2 . . . 1 . . . . . . Prototype ID Bank 4 | . . . . 3 . . . 1 . . . . . . Open Door 1 | . . 1 . . . . . . . . . . . . Emergency Access Points 2 | . . . . . . . . 1 . . 1 . . . Terminal Index 1 | . . . . 1 . . . . . . . . . . Garrison Index 1 | . . . . . . . . 1 . . . . . . Alert Level 1 | . . . . . . . . 1 . . . . . . Unreport Threat 3 | . . . . . . . . . . 2 . 1 . . Locate Traps 1 | . 1 . . . . . . . . . . . . . Registered Prototypes 1 | . . . . . . . . . . 1 . . . . Zone Layout 1 | . . . . . . . . . . . . 1 . . Garrison Registry 2 | . . . . . . . . . 1 . . . 1 . Proto ID Catalog 1 | . . . 1 . . . . . . . . . . . Fabricator Hacks 7 | . . . . . . 1 . 1 . 3 . 2 . . Network Status 3 | . . . . . . 1 . 1 . 1 . . . . Load Schematic 2 | . . . . . . . . . . 1 . 1 . . Build 2 | . . . . . . . . . . 1 . 1 . . Repair Station Hacks 6 | . . . . . . . . 2 . 4 . . . . Scan Component 3 | . . . . . . . . 1 . 2 . . . . Repair 3 | . . . . . . . . 1 . 2 . . . . Recycling Unit Hacks 15 | . 3 . . 3 . 5 . 2 . 1 . 1 . . Process 1 | . 1 . . . . . . . . . . . . . Retrieve Matter 4 | . 2 . . . . 2 . . . . . . . . Retrieve Components 10 | . . . . 3 . 3 . 2 . 1 . 1 . . Scanalyzer 19 | . . . . . . 1 . 13 . 3 . 2 . . Insert Component 4 | . . . . . . . . 3 . . . 1 . . Analyze 6 | . . . . . . . . 6 . . . . . . Retrieve Study 9 | . . . . . . 1 . 4 . 3 . 1 . . Garrison Access Hacks 8 | . . . . . . 1 . 3 . 2 . 2 . . Unlock Access 3 | . . . . . . . . 1 . 1 . 1 . . Seal Access 5 | . . . . . . 1 . 2 . 1 . 1 . . Unauthorized Hacks 57 | . 5 . . 11 . 10 . 17 . 11 . 3 . . Terminals 27 | . 4 . . 6 . 5 . 8 . 2 . 2 . . Track 2 | . . . . . . . . 1 . 1 . . . . Assimilate 2 | . . . . . . 1 . . . . . 1 . . Botnet 8 | . 2 . . 1 . 1 . 2 . 1 . 1 . . Operators 1 | . 1 . . . . . . . . . . . . . Skim 14 | . 1 . . 5 . 3 . 5 . . . . . . Fabricators 3 | . . . . . . . . 1 . 2 . . . . Report 2 | . . . . . . . . 1 . 1 . . . . Haulers 1 | . . . . . . . . . . 1 . . . . Repair Stations 1 | . . . . . . . . 1 . . . . . . Patch 1 | . . . . . . . . 1 . . . . . . Recycling Units 25 | . 1 . . 5 . 5 . 6 . 7 . 1 . . Tunnel 6 | . 1 . . 5 . . . . . . . . . . Fedlink 19 | . . . . . . 5 . 6 . 7 . 1 . . Scanalyzers 1 | . . . . . . . . 1 . . . . . . Extract 1 | . . . . . . . . 1 . . . . . . Garrison Access . | . . . . . . . . . . . . . . . Data Cores Recovered 4 | . 1 . . . . . . . . 1 . 2 . . Used 3 | . . . . . . . . . . 1 . 2 . . Hacking Detections 62 | . 5 . . 5 . 10 . 17 1 14 1 9 . . Full Trace Events 9 | . . . . . . 2 . 1 1 3 . 2 . . Feedback Events . | . . . . . . . . . . . . . . . Feedback Blocked . | . . . . . . . . . . . . . . . Robot Schematics Acquired . | . . . . . . . . . . . . . . . Robots Built . | . . . . . . . . . . . . . . . Authchips . | . . . . . . . . . . . . . . . Time . | . . . . . . . . . . . . . . . Total Robot Build Rating . | . . . . . . . . . . . . . . . Part Schematics Acquired 7 | . . . . . . . . 5 . 1 . 1 . . Parts Built 4 | . . . . . . . . . . 2 . 2 . . Authchips . | . . . . . . . . . . . . . . . Time 153 | . . . . . . . . . . 95 . 58 . . Total Part Build Rating 24 | . . . . . . . . . . 10 . 14 . . Part Studies Acquired 9 | . . . . . . 1 . 4 . 3 . 1 . . Parts Repaired 3 | . . . . . . . . 1 . 2 . . . . Time 205 | . . . . . . . . 50 . 155 . . . . Parts Recycled . | . . . . . . . . . . . . . . . Recycled Matter 3 | . 3 . . . . . . . . . . . . . Retrieved Matter 3 | . 3 . . . . . . . . . . . . . Retrieved Components 30 | . . . . 13 . 8 . . . 9 . . . . Parts Scanalyzed 3 | . . . . . . . . 3 . . . . . . Part Schematics Acquired 3 | . . . . . . . . 3 . . . . . . Parts Damaged . | . . . . . . . . . . . . . . . Bothacking | -11 -10 -10 -10 -8 -8 -6 -6 -6 -6 -6 -6 -5 -5 -4 ------------ Run | Yrd Mat Min Sub Rec Scr Fac Was Fac Gar Fac Gar Fac Gar Fac Used RIF Installer 5 | . . . . . . . . . 2 . 2 . 1 . Threat Obfuscator 1 | . . . . . . . . . . . . . 1 . Patrol Navigation 1 | . . . . . . . . . 1 . . . . . Structural Interface 1 | . . . . . . . . . . . 1 . . . Program Shield 1 | . . . . . . . . . . . 1 . . . Robots Hacked 8 | . . . . . . . . . 2 1 . . 5 . Non-combat 1 | . . . . . . . . . . 1 . . . . Combat 7 | . . . . . . . . . 2 . . . 5 . Robot Hacks Applied 11 | . . . . . . . . . 2 4 . . 5 . parse_system 1 | . . . . . . . . . . 1 . . . . purge_threat 2 | . . . . . . . . . . 2 . . . . overload_power 1 | . . . . . . . . . . . . . 1 . amplify_resonance 1 | . . . . . . . . . . . . . 1 . disable_weapons 1 | . . . . . . . . . 1 . . . . . overwrite_iff 3 | . . . . . . . . . . . . . 3 . formatsys_low 1 | . . . . . . . . . . 1 . . . . formatsys_high 1 | . . . . . . . . . 1 . . . . . Relay Couplers Released 17 | . . . . . . . . . 5 . 4 . 8 . Machine Destruction 17 | . . . . . . . . . 5 . 4 . 8 . Attached 5 | . . . . . . . . . 4 . . . 1 . Fabnet Peak Effective % . | . . . . . . . . . . . . . . . Robots Rewired 8 | . . . . . . . . . 8 . . . . . Allies Hacked . | . . . . . . . . . . . . . . . Hacks Repelled . | . . . . . . . . . . . . . . . Allies | -11 -10 -10 -10 -8 -8 -6 -6 -6 -6 -6 -6 -5 -5 -4 -------- Run | Yrd Mat Min Sub Rec Scr Fac Was Fac Gar Fac Gar Fac Gar Fac Total Allies 15 | . . 1 . . . 1 . . 9 1 . . 3 . Largest Group 8 | . . 1 . . . 1 1 . 8 2 . . 1 . Highest-Rated Group 236 | . . 31 . . . 26 26 . 236 58 . . 29 . Highest-Rated Ally 32 | . . 31 . . . 26 26 . 32 32 . . 29 . Initial UFD Resources 84 | . . . . . . 22 42 42 54 54 68 72 82 84 Total Orders 13 | . . . . . . . . . . 13 . . . . STAY 7 | . . . . . . . . . . 7 . . . . FOLLOW 6 | . . . . . . . . . . 6 . . . . Ally Attacks 84 | . . 2 . . . . . . 78 . . . 4 . Total Damage 1596 | . . 21 . . . . . . 1500 . . . 75 . Kills 11 | . . 1 . . . . . . 10 . . . . . Allies Corrupted . | . . . . . . . . . . . . . . . Allies Melted . | . . . . . . . . . . . . . . . Intel | -11 -10 -10 -10 -8 -8 -6 -6 -6 -6 -6 -6 -5 -5 -4 ------- Run | Yrd Mat Min Sub Rec Scr Fac Was Fac Gar Fac Gar Fac Gar Fac Active Infowar (turns) 6580 | 15 35 . . . . 1001 53 1622 1172 1866 3 811 2 . Sensors 5341 | . . . . . . 1001 53 1622 1 1848 3 811 2 . IFF 1171 | . . . . . . . . . 1171 . . . . . Terrain 50 | 15 35 . . . . . . . . . . . . . Cloaking 18 | . . . . . . . . . . 18 . . . . Robot Analysis Total 4 | . 1 . . 2 . . . 1 . . . . . . Derelict Logs Recovered 6 | . . 2 1 . 3 . . . . . . . . . Drone Launches . | . . . . . . . . . . . . . . . Drone Recoveries . | . . . . . . . . . . . . . . . Exploration | -11 -10 -10 -10 -8 -8 -6 -6 -6 -6 -6 -6 -5 -5 -4 ------------- Run | Yrd Mat Min Sub Rec Scr Fac Was Fac Gar Fac Gar Fac Gar Fac Turns Passed 17886 | 92 3178 1000 2978 928 1556 1112 53 1820 1320 2063 529 844 413 . Spaces Moved 14415 | 37 967 612 1072 774 1475 1247 99 2545 939 2588 543 1105 412 . Core 155 | . . . . . 155 . . . . . . . . . Treads 2495 | 1 967 612 915 . . . . . . . . . . . Legs 64 | 36 . . . . . . . . 28 . . . . . Wheels 2988 | . . . 157 774 1320 249 . . 488 . . . . . Hover 8146 | . . . . . . 431 99 2545 423 2588 543 1105 412 . Flight 567 | . . . . . . 567 . . . . . . . . Fastest Speed 20 | 120 160 160 115 115 50 20 52 44 52 52 52 48 48 . Average Speed 87 | 121 160 160 221 115 103 52 52 51 92 53 52 51 53 . Slowest Speed 925 | 160 160 160 250 115 350 925 52 105 250 124 58 113 147 . Overloaded Moves . | . . . . . . . . . . . . . . . Propulsion Burnouts . | . . . . . . . . . . . . . . . Robots Hopped 3 | . . . . . . 3 . . . . . . . . Potential Cave-ins 4 | . . . . . . 2 . 2 . . . . . . Cave-ins Triggered . | . . . . . . . . . . . . . . . Exploration Rate (%) 65 | 4 97 98 63 95 86 37 86 61 84 51 67 35 48 . Regions Visited 14 Branch Regions 4 Pre-discovered Areas 20 | . 1 . 2 5 7 1 . 4 . . . . . . Known Exits Taken 4 | . . . . 1 . . . 1 . 1 . 1 . . Unknown Exits Taken 5 | 1 1 1 1 . 1 . . . . . . . . . Scrap Searched 15 | . . 1 12 . 2 . . . . . . . . . Spaces Dug 87 | . 10 12 9 . . 5 . 15 1 9 1 2 23 . Terrain Destroyed 478 | . 201 16 35 1 . 12 . 27 84 21 13 7 61 . Melee . | . . . . . . . . . . . . . . . Projectile 97 | . . . 14 1 . 8 . 27 4 21 13 7 2 . AOE 377 | . 201 16 21 . . . . . 80 . . . 59 . Terrain Rammed . | . . . . . . . . . . . . . . . Walls Destroyed . | . . . . . . . . . . . . . . . Machines Disabled . | . . . . . . . . . . . . . . . Actions | -11 -10 -10 -10 -8 -8 -6 -6 -6 -6 -6 -6 -5 -5 -4 --------- Run | Yrd Mat Min Sub Rec Scr Fac Was Fac Gar Fac Gar Fac Gar Fac Total 18496 | 58 2245 632 1580 800 1516 1606 100 2924 1241 3192 724 1355 523 . Wait 2709 | 2 1023 1 406 12 . 189 1 231 98 480 65 178 23 . Move 14395 | 36 966 611 1071 773 1474 1241 98 2544 937 2588 541 1104 411 . Hop 3 | . . . . . . 3 . . . . . . . . Pick Up 115 | . 21 6 14 2 17 9 1 12 9 13 4 4 3 . Fast Attach 91 | 1 1 1 2 . 3 29 . 12 17 7 2 6 10 . Attach 45 | 2 . . 5 . 1 7 . 4 5 8 2 2 9 . Detach 18 | . . . 2 . . 4 . 3 3 1 1 1 3 . Swap 109 | . 8 1 4 4 . 21 . 19 19 12 3 12 6 . Drop 154 | 2 12 7 14 3 21 27 . 10 22 16 2 12 6 . Fire 755 | 15 213 2 62 5 . 74 . 84 82 65 78 24 51 . Melee . | . . . . . . . . . . . . . . . Ram . | . . . . . . . . . . . . . . . Kick . | . . . . . . . . . . . . . . . Crush 4 | . 1 3 . . . . . . . . . . . . Escape Stasis 48 | . . . . . . . . 4 8 . 26 10 . . Rewire 39 | . . . . . . . . . 39 . . . . . Trap . | . . . . . . . . . . . . . . . Miscellaneous 11 | . . . . 1 . 2 . 1 2 2 . 2 1 . Route ------- -11/Scrapyard -10/Materials (discovered 6 exits: [*Mat x3] / *Min x2 / *Sub) -10/Mines (discovered 4 exits: [*Mat x2] / [*Exi] / *Sub) -10/Subcaves (discovered 2 exits: [*Mat] / *Rec) -8/Recycling (discovered 2 exits: *Fac / *Scr) -8/Scraptown (discovered 2 exits: *Fac x2) -6/Factory (discovered 2 exits: *Fac x2) -6/Waste -6/Factory (discovered 4 exits: *Fac x2 / Low / Gar) -6/Garrison (discovered 3 exits: *Fac x3) -6/Factory (discovered 4 exits: *Fac x2 / *Low / Gar) -6/Garrison (discovered 3 exits: *Fac x3) -5/Factory (discovered 4 exits: *Fac x2 / Upp / Gar) -5/Garrison (discovered 3 exits: *Fac x3) -4/Factory History --------- Turn | Location | Event 18 | -11/Scrapyard | Discovered new exit (range 3) 93 | -11/Scrapyard | Entered Materials 309 | -10/Materials | Build established: Mutant 467 | -10/Materials | Discovered new exit (range 11) 683 | -10/Materials | Discovered new exit (range 9) 936 | -10/Materials | Discovered new exit (range 16) 1053 | -10/Materials | Central database locked down 1075 | -10/Materials | Discovered new exit (range 4) 1180 | -10/Materials | Discovered new exit (range 6) 1454 | -10/Materials | Discovered new exit (range 8) 3271 | -10/Materials | Entered Mines 3381 | -10/Mines | Received a Mining Laser from a helpful Derelict 3404 | -10/Mines | Discovered new exit (range 7) 3417 | -10/Mines | Joined a pair of Derelicts in attacking an 0b10 outpost 3503 | -10/Mines | A weapon hastily lodged in a ceiling crevice suddenly fell to the ground 3506 | -10/Mines | YI-UF0 nonchalantly dropped a Grenade Launcher on the ground 3572 | -10/Mines | Found a hidden stash of uninstalled traps 3609 | -10/Mines | Discovered new exit (range 15) 3762 | -10/Mines | Discovered new exit (range 4) 3817 | -10/Mines | Deemed a non-threat by the Exiles lab entrance 3817 | -10/Mines | Discovered new exit (range 5) 4194 | -10/Mines | Met a Derelict shopkeep closing up shop 4196 | -10/Mines | Learned Materials security intel 4271 | -10/Mines | Entered Subcaves 4272 | -10/Subcaves | Approached by a straggling Scientist 4349 | -10/Subcaves | Learned Materials stockpile data 4353 | -10/Subcaves | A swath of the cavern ceiling suddenly collapsed 4446 | -10/Subcaves | Curiously followed by a Cobbler waking with a query about "LVR3C" 4804 | -10/Subcaves | Discovered new exit (range 5) 4825 | -10/Subcaves | Disturbed a concealed Subdweller 5498 | -10/Subcaves | Visited 4L-MR0's lab 5523 | -10/Subcaves | Found Gun Armor 5920 | -10/Subcaves | Learned location of Zion (-7) 5920 | -10/Subcaves | Met a Zionite searching for "candidates" 6357 | -10/Subcaves | Shifting Twisted Machinery released Spk. Treads 6638 | -10/Subcaves | Visited Clippyterm 6646 | -10/Subcaves | Learned location of Deep Caves (-7) 6744 | -10/Subcaves | Shifting Twisted Machinery released Battle Rifle 6931 | -10/Subcaves | A Subdweller sparked back to life 6992 | -10/Subcaves | Found Powered Cannon 7003 | -10/Subcaves | Lost 4 parts (1p2n1w) 7047 | -10/Subcaves | Shifting Twisted Machinery released Sub. Machine Gun 7062 | -10/Subcaves | Discovered new exit (range 13) 7064 | -10/Subcaves | Core integrity fell below 50% 7159 | -10/Subcaves | Shifting Twisted Machinery released Sub. Laser 7249 | -10/Subcaves | Entered Recycling 7269 | -8/Recycling | Scanned before Scraplab entrance 7509 | -8/Recycling | Discovered new exit (range 15) 7712 | -8/Recycling | Identified exit to Scraptown 7747 | -8/Recycling | Learned 4 Lower Caves zone layouts 7771 | -8/Recycling | Loaded intel: 5 recycling unit locations 7792 | -8/Recycling | Entered Scraplab 7848 | -8/Recycling | Learned 2 Lower Caves zone layouts 8177 | -8/Recycling | Entered Scraptown 8332 | -8/Scraptown | Discovered new exit (range 11) 8395 | -8/Scraptown | Scanned Subdweller tech in exchange for log data 8398 | -8/Scraptown | Learned location of Warlord (-4) 8399 | -8/Scraptown | Learned Factory emergency access door positions 8401 | -8/Scraptown | Learned location of Armory (-4) 8466 | -8/Scraptown | Visited Cave Peace 8491 | -8/Scraptown | Visited Assassins FH 8501 | -8/Scraptown | Visited Fellowship of the Rings 8683 | -8/Scraptown | Visited Comm Corps 8705 | -8/Scraptown | Visited UFD Registry 8705 | -8/Scraptown | Registered with UFD as "Megaparser" 8733 | -8/Scraptown | Visited Cyclists 8743 | -8/Scraptown | Entered Cyclist Reading Room 8809 | -8/Scraptown | Visited Infowarlord's Domain 8815 | -8/Scraptown | Found Exp. Sensor Array 8836 | -8/Scraptown | Visited Scrapoid Research Area 8855 | -8/Scraptown | Visited Observation Area 8964 | -8/Scraptown | Visited Science Guys 8979 | -8/Scraptown | Visited Scrap Suit Storage 8994 | -8/Scraptown | Visited Scrapoid Pod Storage 9009 | -8/Scraptown | Visited Science Testing Area 9025 | -8/Scraptown | Visited Research Penetration Think Tank 9053 | -8/Scraptown | Visited Curators Association 9098 | -8/Scraptown | Visited Cartography Club 9148 | -8/Scraptown | Learned location of Extension (-5) 9148 | -8/Scraptown | Learned location of Archives (-5) 9148 | -8/Scraptown | Learned 4 Mines zone layouts 9148 | -8/Scraptown | Learned 4 Recycling zone layouts 9148 | -8/Scraptown | Learned 8 Lower Caves zone layouts 9148 | -8/Scraptown | Learned 12 Lower Caves zone layouts 9148 | -8/Scraptown | Learned 12 Upper Caves zone layouts 9148 | -8/Scraptown | Learned 16 Upper Caves zone layouts 9148 | -8/Scraptown | Learned 8 Proximity Caves zone layouts 9148 | -8/Scraptown | Learned 16 Proximity Caves zone layouts 9148 | -8/Scraptown | Learned 4 Hub_04(d) zone layouts 9148 | -8/Scraptown | Learned Materials emergency access door positions 9148 | -8/Scraptown | Learned location of 1 exit from Factory 9148 | -8/Scraptown | Learned location of 1 exit from Lower Caves 9148 | -8/Scraptown | Learned location of 1 exit from Upper Caves 9674 | -8/Scraptown | Met Optimus 9674 | -8/Scraptown | Accepted into 0bPrime 9730 | -8/Scraptown | Discovered new exit (range 3) 9733 | -8/Scraptown | Entered Factory 9733 | -6/Factory | Evolved 8 slots: Propulsion x4, Utility x4 9734 | -6/Factory | Identified exit to Factory 9957 | -6/Factory | Loaded intel: 8 recycling unit locations 10045 | -6/Factory | Central database locked down 10088 | -6/Factory | Build established: Hacker-Mutant 10227 | -6/Factory | Garrison activated, responded to threat 10516 | -6/Factory | Lost 4 parts (1p3n) 10580 | -6/Factory | Learned location of Protoforge (-3) 10814 | -6/Factory | Build established: Hacker-Sprinter 10838 | -6/Factory | Discovered exit to Factory (range 15) 10845 | -6/Factory | Sucked down chute 10845 | -6/Factory | Entered Waste 10860 | -6/Waste | EMP discharged 10861 | -6/Waste | Spotted C-40 Crusher 10868 | -6/Waste | Spotted C-40 Crusher 10873 | -6/Waste | Spotted C-40 Crusher 10874 | -6/Waste | Spotted C-40 Crusher 10879 | -6/Waste | Spotted C-40 Crusher 10880 | -6/Waste | Spotted C-40 Crusher 10886 | -6/Waste | Discovered new exit (range 14) 10895 | -6/Waste | 1 allies followed down the chute 10898 | -6/Waste | Identified exit to Factory 10898 | -6/Waste | Entered Factory 10985 | -6/Factory | Loaded intel: 8 recycling unit locations 11048 | -6/Factory | Repaired Gravmag Array 11121 | -6/Factory | Build established: Hacker-Mutant 11283 | -6/Factory | Central database locked down 11955 | -6/Factory | Loaded intel: 96 trap records 12110 | -6/Factory | Learned 2 Lower Caves zone layouts 12140 | -6/Factory | Learned location of Upper Caves (-5) 12174 | -6/Factory | Identified exit to Lower Caves 12194 | -6/Factory | Learned Extension emergency access door positions 12226 | -6/Factory | Learned Extension security intel 12267 | -6/Factory | Learned 2 Hub_04(d) zone layouts 12320 | -6/Factory | Learned Extension stockpile data 12428 | -6/Factory | Discovered exit to Factory (range 15) 12697 | -6/Factory | Discovered exit to Factory (range 5) 12716 | -6/Factory | Identified exit to Garrison 12718 | -6/Factory | Entered Garrison 12761 | -6/Garrison | Phase Generator disabled 12962 | -6/Garrison | Triggered checkpoint 13118 | -6/Garrison | Triggered checkpoint 13226 | -6/Garrison | Triggered checkpoint 13245 | -6/Garrison | Triggered checkpoint 13260 | -6/Garrison | Triggered checkpoint 13355 | -6/Garrison | Lost 3 allies 13392 | -6/Garrison | Triggered checkpoint 13406 | -6/Garrison | Installed Relay Interface Framework 13421 | -6/Garrison | Garrison Relay disabled 13462 | -6/Garrison | Discovered new exit (range 11) 13610 | -6/Garrison | Build established: Scavenger-Mutant 13697 | -6/Garrison | Discovered new exit (range 23) 13697 | -6/Garrison | Discovered new exit (range 26) 13697 | -6/Garrison | Discovered new exit (range 70) 13702 | -6/Garrison | Triggered checkpoint 13968 | -6/Garrison | Expanded RIF knowledge: Patrol Navigation 14038 | -6/Garrison | Entered Factory 14038 | -6/Factory | Accompanied by 1 ally 14182 | -6/Factory | Loaded intel: 8 recycling unit locations 14334 | -6/Factory | Discovered exit to Lower Caves (range 15) 14505 | -6/Factory | Repaired Neutron Missile Launcher 14562 | -6/Factory | Repaired Antigrav System 14858 | -6/Factory | Watched by a mysterious "MATRIX" hacker. 15235 | -6/Factory | Discovered exit to Factory (range 7) 15335 | -6/Factory | Attached Powered Cannon, gained temporary slot: Power 15393 | -6/Factory | Build established: Mutant 15797 | -6/Factory | Discovered exit to Factory (range 11) 15912 | -6/Factory | Fabricated Hyb. Fission Core (x2) 16101 | -6/Factory | Identified exit to Garrison 16101 | -6/Factory | Entered Garrison 16124 | -6/Garrison | Expanded RIF knowledge: Program Shield 16157 | -6/Garrison | Triggered checkpoint 16170 | -6/Garrison | Core integrity fell below 50% 16268 | -6/Garrison | Discovered exit to Factory (range 14) 16287 | -6/Garrison | Spotted Striker 16287 | -6/Garrison | Spotted Striker 16340 | -6/Garrison | Triggered checkpoint 16353 | -6/Garrison | Garrison Relay disabled 16385 | -6/Garrison | Triggered checkpoint 16401 | -6/Garrison | Build established: Scavenger-Mutant 16531 | -6/Garrison | Discovered exit to Factory (range 10) 16540 | -6/Garrison | Spotted B-75 Beast 16571 | -6/Garrison | Triggered checkpoint 16596 | -6/Garrison | Expanded RIF knowledge: Structural Interface 16610 | -6/Garrison | Discovered exit to Factory (range 10) 16630 | -6/Garrison | Entered Factory 16630 | -5/Factory | Evolved 2 slots: Utility x1, Weapon x1 16631 | -5/Factory | Identified exit to Upper Caves 16647 | -5/Factory | Central database locked down 16772 | -5/Factory | Loaded intel: 8 recycling unit locations 17001 | -5/Factory | Fabricated Imp. Linear Gravjet? 17217 | -5/Factory | Discovered new exit (range 5) 17217 | -5/Factory | Spotted B-75 Beast 17357 | -5/Factory | Cargo convoy interrupted 17407 | -5/Factory | Build established: Hacker-Skirmisher 17412 | -5/Factory | Discovered new exit (range 8) 17415 | -5/Factory | Identified exit to Factory 17429 | -5/Factory | Identified exit to Garrison 17474 | -5/Factory | Entered Garrison 17521 | -5/Garrison | Garrison Relay disabled 17535 | -5/Garrison | Triggered checkpoint 17560 | -5/Garrison | Garrison Relay disabled 17599 | -5/Garrison | Triggered checkpoint 17641 | -5/Garrison | Discovered exit to Factory (range 14) 17646 | -5/Garrison | Discovered exit to Factory (range 85) 17646 | -5/Garrison | Discovered exit to Factory (range 67) 17646 | -5/Garrison | Discovered exit to Factory (range 15) 17649 | -5/Garrison | Expanded RIF knowledge: Threat Obfuscation 17717 | -5/Garrison | Spotted Striker 17785 | -5/Garrison | Destroyed Striker 17801 | -5/Garrison | Lost 6 parts (1p3n2w) 17844 | -5/Garrison | Triggered checkpoint 17871 | -5/Garrison | Core integrity fell below 50% 17887 | -5/Garrison | Entered Factory 17887 | -4/Factory | Evolved 2 slots: Weapon x2 17887 | -4/Factory | Self-destructed Last Messages --------------- 17847_ G-50 Soldier destroyed. 17848_ The unstable cave ceiling collapses. 17852_ Lgt. Fission Core destroyed. 17853_ Jacked G-50 Soldier... >>overload_power Initiated overload sequence, T-5 to critical power. 17854_ Adv. Heat Sink destroyed. 17858_ G-50 Soldier Lgt. Angular Momentum Engine critical detonation. 17858_ G-50 Soldier destroyed. Garrison Door activated. 17864_ Acquired Lgt. Nuclear Core. 17874_ S-27 Virus destroyed. 17887_ Attempting to access garrison exit controls... RIF authorized. PARAMETERS=WEAPON+2 LOCATION=FACTORY GOAL=ESCAPE Map ----- +----------------------------------------------------+ | ?????????????????????????????????????????????? | | ?????????????????????????????????????????????? | | ?????????????????????????????????????????????? | | ?????????????????????????????????????????????? | | ?????????????????????????????????????????????? | | ?????????????????????????????????????????????? | | ?????????????????????????????????????????????? | | ?????????????????????????????????????????????? | | ?????????????????????????????????????????????? | | ?????????????????????????????????????????????? | | ?????????????????????????????????????????????? | | ?????????????????????????????????????????????? | | ?????????????????????????????????????????????? | | ?????????????????????????????????????????????? | | ?????????????????????????????????????????????? | | ?????????????????????????????????????????????? | | ?????????????????????????????????????????????? | | ?????????????????????????????????????????????? | | ?????????????????????????????????????????????? | | ?????????????????????????????????????????????? | | ?????????????????????????????????????????????? | | ???????????????????????####??????????????????? | | ???????????#############T ###????????????????? | | ?????????? #????????????????? | | ?????????? #????????????????? | | ?????????? @ #????????????????? | | ?????????? #????????????????? | | ?????????? #????????????????? | | ??????????? ###########+#####????????????????? | | ?????????????????????????????????????????????? | | ?????????????????????????????????????????????? | | ?????????????????????????????????????????????? | | ?????????????????????????????????????????????? | | ?????????????????????????????????????????????? | | ?????????????????????????????????????????????? | | ?????????????????????????????????????????????? | | ?????????????????????????????????????????????? | | ?????????????????????????????????????????????? | | ?????????????????????????????????????????????? | | ?????????????????????????????????????????????? | | ?????????????????????????????????????????????? | | ?????????????????????????????????????????????? | | ?????????????????????????????????????????????? | | ?????????????????????????????????????????????? | | ?????????????????????????????????????????????? | | ?????????????????????????????????????????????? | | ?????????????????????????????????????????????? | | ?????????????????????????????????????????????? | | ?????????????????????????????????????????????? | | ?????????????????????????????????????????????? | +----------------------------------------------------+ Best States ------------- Heat Dissipation 90 Energy Generation 24 Energy Capacity 1110 Matter Stores 300 Matter Capacity 300 Sight Range 16 Robot Scan Range 20 Terrain Scan Range 16 Terrain Scan Density 10 Cloak Strength 2 Armor Coverage 675 Weapon Shielding 66 Phase Shifting 10 Evasion (%) 65 Targeting Accuracy 8 Target Analysis 6 Recoil Reduction 2 Offensive Hacking 21 Defensive Hacking 20 Relay Coupler Types 3 Relay Coupler Value 85 Item Schematics ----------------- Exp. Sensor Array | -6/Factory | Scanalyzed Multitool | -6/Factory | Scanalyzed Neutron Missile Launcher | -6/Factory | Scanalyzed Hrd. Light Armor Plating | -6/Factory | Extracted Imp. Light Armor Plating | -6/Factory | Extracted Hyb. Fission Core | -6/Factory | Hacked Imp. Linear Gravjet | -5/Factory | Hacked Robot Schematics ------------------ None Fabricated ------------ Hyb. Fission Core | x2 | -6/Factory Imp. Linear Gravjet | x2 | -5/Factory Repaired ---------- Gravmag Array | 16% | -6/Factory Neutron Missile Launcher | 18% | -6/Factory Antigrav System | 36% | -6/Factory Studied --------- Wheel | -6/Factory | Hacked Gravmag System | -6/Factory | Hacked Gravmag Array | -6/Factory | Hacked Mic. Nuclear Core | -6/Factory | Hacked Gatling Laser | -6/Factory | Hacked Antigrav System | -6/Factory | Hacked Phase Cannon | -6/Factory | Hacked Cmb. Airjet | -6/Factory | Hacked Linear Gravjet | -5/Factory | Hacked Alien Tech Used ----------------- None Achievements -------------- None Challenges ------------ None Game ------ Seed LightningMultireflexRipteeth Manual? 0 Play Time 02:58:08 Cumulative 421.6 hours Start 2026.04.17 @ 20:59:03 End 2026.04.21 @ 04:46:24 Sessions 15 Manual Loads 0 Difficulty Rogue Special Mode None Game No. 353 Rogue 317 Adventurer 36 Explorer 0 Win Type - Total 5 Types 2/0/0/1/0/0/0/2/0/0 Lore% 77 Gallery% 69 Achievement% 58 Wizard Run 0 Options --------- Layout 1 ASCII 0 Keyboard 0 Movement Numpad Keybinds 0 Fullscreen 1 Font 48/Smallcaps Map View 50x35 Zoom Use 0% Tactical HUD 1 Map Filters NONE Filters NONE Steam 1 RUN: 9384ce17-6543-49a3-9e47-49dd242406dd